[Event "Late-Titled-Tuesday-Blitz-May-07-2024"]
[Site "Chess.com"]
[Date "2024.05.07"]
[Round "1"]
[White "GrotBchess"]
[Black "crescentmoon2411"]
[Result "0-1"]
[WhiteElo "2515"]
[BlackElo "2877"]
[TimeControl "180+1"]
[EndTime "14:07:55 PDT"]
[Termination "crescentmoon2411 won by checkmate"]

1. e4 {[%clk 0:03:00.9]} 1... c5 {[%clk 0:02:56.6]} 2. Nf3 {[%clk 0:03:00.9]}
2... Nf6 {[%clk 0:02:56.6]} 3. Nc3 {[%clk 0:02:59.4]} 3... d5 {[%clk 0:02:56.4]}
4. exd5 {[%clk 0:02:58.6]} 4... Nxd5 {[%clk 0:02:57.3]} 5. Bb5+ {[%clk
0:02:58.3]} 5... Bd7 {[%clk 0:02:57.4]} 6. Bxd7+ {[%clk 0:02:56.9]} 6... Qxd7
{[%clk 0:02:57.5]} 7. Nxd5 {[%clk 0:02:56]} 7... Qxd5 {[%clk 0:02:58.1]} 8. O-O
{[%clk 0:02:56.6]} 8... Nc6 {[%clk 0:02:58.5]} 9. Re1 {[%clk 0:02:56]} 9... e6
{[%clk 0:02:58.4]} 10. b3 {[%clk 0:02:56]} 10... Be7 {[%clk 0:02:57.6]} 11. Bb2
{[%clk 0:02:56.1]} 11... Bf6 {[%clk 0:02:58.1]} 12. Bxf6 {[%clk 0:02:53.9]}
12... gxf6 {[%clk 0:02:59]} 13. Qe2 {[%clk 0:02:53.5]} 13... O-O-O {[%clk
0:02:58.7]} 14. Rad1 {[%clk 0:02:52]} 14... Rhg8 {[%clk 0:02:58.6]} 15. Qe4
{[%clk 0:02:49.1]} 15... f5 {[%clk 0:02:54.2]} 16. Qxd5 {[%clk 0:02:47.3]} 16...
Rxd5 {[%clk 0:02:55.1]} 17. d3 {[%clk 0:02:41.9]} 17... Nb4 {[%clk 0:02:54.4]}
18. Re2 {[%clk 0:02:41.6]} 18... Nxa2 {[%clk 0:02:53.4]} 19. Ra1 {[%clk
0:02:40.1]} 19... Nc3 {[%clk 0:02:53.6]} 20. Re5 {[%clk 0:02:36.8]} 20... a6
{[%clk 0:02:52.3]} 21. Kf1 {[%clk 0:02:35.1]} 21... Kc7 {[%clk 0:02:50.8]} 22.
Ra5 {[%clk 0:02:33.5]} 22... Kd6 {[%clk 0:02:43.5]} 23. Re1 {[%clk 0:02:24.7]}
23... h6 {[%clk 0:02:25.5]} 24. Nd2 {[%clk 0:02:08.7]} 24... Kc7 {[%clk
0:02:19]} 25. Nc4 {[%clk 0:02:05.9]} 25... Re8 {[%clk 0:01:23.4]} 26. Re5 {[%clk
0:02:04.9]} 26... b5 {[%clk 0:01:16.3]} 27. Rxd5 {[%clk 0:01:56.6]} 27... exd5
{[%clk 0:01:16.5]} 28. Ne3 {[%clk 0:01:40.3]} 28... f4 {[%clk 0:01:13.1]} 29.
Nf5 {[%clk 0:01:39.1]} 29... Kb6 {[%clk 0:01:05.1]} 30. Ra1 {[%clk 0:01:35.2]}
30... h5 {[%clk 0:00:56.3]} 31. g3 {[%clk 0:01:17.7]} 31... fxg3 {[%clk
0:00:50.4]} 32. hxg3 {[%clk 0:01:17]} 32... a5 {[%clk 0:00:49.4]} 33. Ne3 {[%clk
0:00:54.4]} 33... d4 {[%clk 0:00:44.2]} 34. Ng2 {[%clk 0:00:54.3]} 34... a4
{[%clk 0:00:36.6]} 35. bxa4 {[%clk 0:00:53]} 35... bxa4 {[%clk 0:00:36.3]} 36.
Nf4 {[%clk 0:00:53]} 36... Ka5 {[%clk 0:00:31.8]} 37. Nxh5 {[%clk 0:00:45.5]}
37... Rb8 {[%clk 0:00:19.2]} 38. Ke1 {[%clk 0:00:33.3]} 38... Rb2 {[%clk
0:00:18]} 39. Kd2 {[%clk 0:00:31.5]} 39... Kb4 {[%clk 0:00:18.5]} 40. Kc1 {[%clk
0:00:22.2]} 40... a3 {[%clk 0:00:18.8]} 41. Nf4 {[%clk 0:00:21.8]} 41... Ka4
{[%clk 0:00:15.8]} 42. g4 {[%clk 0:00:08.9]} 42... Rb8 {[%clk 0:00:15.2]} 43.
Kd2 {[%clk 0:00:05.9]} 43... a2 {[%clk 0:00:12.1]} 44. Ne2 {[%clk 0:00:05.9]}
44... Rb1 {[%clk 0:00:11.4]} 45. Nxc3+ {[%clk 0:00:03.6]} 45... dxc3+ {[%clk
0:00:11.4]} 46. Kxc3 {[%clk 0:00:04.5]} 46... Rxa1 {[%clk 0:00:11.7]} 47. Kb2
{[%clk 0:00:05.4]} 47... Rf1 {[%clk 0:00:11.8]} 48. Kxa2 {[%clk 0:00:05.3]}
48... Rxf2 {[%clk 0:00:12.1]} 49. Kb2 {[%clk 0:00:06.2]} 49... Kb4 {[%clk
0:00:12.1]} 50. Kc1 {[%clk 0:00:05.7]} 50... Kc3 {[%clk 0:00:12.3]} 51. Kd1
{[%clk 0:00:06.6]} 51... Rxc2 {[%clk 0:00:12.3]} 52. Ke1 {[%clk 0:00:07.5]}
52... Kxd3 {[%clk 0:00:12.5]} 53. Kf1 {[%clk 0:00:08.4]} 53... c4 {[%clk
0:00:12.7]} 54. Kg1 {[%clk 0:00:09.3]} 54... Rd2 {[%clk 0:00:13.4]} 55. Kf1
{[%clk 0:00:10.2]} 55... c3 {[%clk 0:00:14.3]} 56. Kg1 {[%clk 0:00:11.1]} 56...
c2 {[%clk 0:00:15.2]} 57. Kh1 {[%clk 0:00:12]} 57... c1=Q# {[%clk 0:00:16]} 0-1

[Event "Late-Titled-Tuesday-Blitz-May-07-2024"]
[Site "Chess.com"]
[Date "2024.05.07"]
[Round "1"]
[White "jlf287"]
[Black "Harsha_Bharathakoti"]
[Result "0-1"]
[WhiteElo "2534"]
[BlackElo "2959"]
[TimeControl "180+1"]
[EndTime "14:07:57 PDT"]
[Termination "Harsha_Bharathakoti won by resignation"]

1. d4 {[%clk 0:02:56]} 1... e6 {[%clk 0:02:59.8]} 2. e4 {[%clk 0:02:51.2]} 2...
d5 {[%clk 0:02:59.5]} 3. exd5 {[%clk 0:02:50.2]} 3... exd5 {[%clk 0:02:59.4]} 4.
Nf3 {[%clk 0:02:50.9]} 4... Nc6 {[%clk 0:02:58.6]} 5. Nc3 {[%clk 0:02:49.8]}
5... Bb4 {[%clk 0:02:58.1]} 6. Bd2 {[%clk 0:02:48.9]} 6... Bg4 {[%clk
0:02:54.6]} 7. Bb5 {[%clk 0:02:44.3]} 7... Ne7 {[%clk 0:02:53]} 8. a3 {[%clk
0:02:29.1]} 8... Bd6 {[%clk 0:02:48.1]} 9. h3 {[%clk 0:02:25.6]} 9... Bh5 {[%clk
0:02:46.6]} 10. Be2 {[%clk 0:02:17.9]} 10... O-O {[%clk 0:02:29.7]} 11. Nb5
{[%clk 0:02:16.7]} 11... Re8 {[%clk 0:02:27.5]} 12. O-O {[%clk 0:02:13.4]} 12...
a6 {[%clk 0:02:12.7]} 13. Nxd6 {[%clk 0:02:13.7]} 13... Qxd6 {[%clk 0:02:13.6]}
14. c3 {[%clk 0:02:14.4]} 14... h6 {[%clk 0:02:05.8]} 15. Re1 {[%clk 0:02:07.3]}
15... Kh8 {[%clk 0:01:41.1]} 16. Ne5 {[%clk 0:01:53.4]} 16... Bg6 {[%clk
0:01:19.1]} 17. Nxg6+ {[%clk 0:01:46.4]} 17... Nxg6 {[%clk 0:01:20]} 18. Bf1
{[%clk 0:01:41.6]} 18... Na5 {[%clk 0:00:59.5]} 19. Qf3 {[%clk 0:01:37.5]} 19...
Kg8 {[%clk 0:00:56]} 20. Rad1 {[%clk 0:01:32.2]} 20... b5 {[%clk 0:00:52.7]} 21.
g3 {[%clk 0:01:27.9]} 21... Nc4 {[%clk 0:00:48.7]} 22. Bc1 {[%clk 0:01:27.6]}
22... a5 {[%clk 0:00:46.8]} 23. h4 {[%clk 0:01:25.3]} 23... a4 {[%clk
0:00:43.3]} 24. h5 {[%clk 0:01:22.8]} 24... Nf8 {[%clk 0:00:43.4]} 25. Re2
{[%clk 0:01:13]} 25... Rxe2 {[%clk 0:00:40.4]} 26. Qxe2 {[%clk 0:01:12.8]} 26...
Nh7 {[%clk 0:00:35.5]} 27. Bf4 {[%clk 0:01:10.7]} 27... Qd7 {[%clk 0:00:35.3]}
28. Re1 {[%clk 0:01:06.5]} 28... Nf6 {[%clk 0:00:34.7]} 29. Bc1 {[%clk
0:00:56.7]} 29... Re8 {[%clk 0:00:33.9]} 30. Qd1 {[%clk 0:00:50.9]} 30... Rxe1
{[%clk 0:00:32.9]} 31. Qxe1 {[%clk 0:00:51.8]} 31... Nxh5 {[%clk 0:00:33.6]} 32.
Bg2 {[%clk 0:00:40.8]} 32... Nf6 {[%clk 0:00:32.7]} 33. Bf3 {[%clk 0:00:40.9]}
33... c6 {[%clk 0:00:32.1]} 34. Kg2 {[%clk 0:00:40.9]} 34... Kf8 {[%clk
0:00:29.6]} 35. Qe2 {[%clk 0:00:37.7]} 35... Qe7 {[%clk 0:00:30.1]} 36. Qd1
{[%clk 0:00:25.1]} 36... Ne4 {[%clk 0:00:29]} 37. Qc2 {[%clk 0:00:22.1]} 37...
Qe6 {[%clk 0:00:23.8]} 38. Be2 {[%clk 0:00:20.9]} 38... Ned6 {[%clk 0:00:21.9]}
39. Bd3 {[%clk 0:00:21]} 39... h5 {[%clk 0:00:19.2]} 40. b3 {[%clk 0:00:18.2]}
40... axb3 {[%clk 0:00:18.3]} 41. Qxb3 {[%clk 0:00:19.1]} 41... g6 {[%clk
0:00:18.2]} 42. a4 {[%clk 0:00:18.9]} 42... Kg7 {[%clk 0:00:16.8]} 43. axb5
{[%clk 0:00:17.6]} 43... Nxb5 {[%clk 0:00:17.7]} 44. Qc2 {[%clk 0:00:14.4]}
44... Qe1 {[%clk 0:00:17.1]} 45. Bf4 {[%clk 0:00:10.2]} 45... Qxc3 {[%clk
0:00:16.2]} 46. Qe2 {[%clk 0:00:09.5]} 46... Qxd4 {[%clk 0:00:13.7]} 47. Bxc4
{[%clk 0:00:08]} 47... Qxc4 {[%clk 0:00:14.2]} 48. Qe5+ {[%clk 0:00:05.3]} 48...
Kh7 {[%clk 0:00:14.4]} 49. Bg5 {[%clk 0:00:02]} 49... Qe4+ {[%clk 0:00:14.8]}
50. Qxe4 {[%clk 0:00:01.5]} 50... dxe4 {[%clk 0:00:15.7]} 51. Be3 {[%clk
0:00:01.8]} 51... Kg7 {[%clk 0:00:15.7]} 52. f3 {[%clk 0:00:02.4]} 52... exf3+
{[%clk 0:00:16.1]} 53. Kxf3 {[%clk 0:00:03.3]} 53... Kf6 {[%clk 0:00:17]} 54.
Ke4 {[%clk 0:00:03.8]} 54... Ke6 {[%clk 0:00:17.5]} 0-1

[Event "Late-Titled-Tuesday-Blitz-May-07-2024"]
[Site "Chess.com"]
[Date "2024.05.07"]
[Round "1"]
[White "ahmedkandiliii"]
[Black "AEMEffi"]
[Result "1-0"]
[WhiteElo "2645"]
[BlackElo "2324"]
[TimeControl "180+1"]
[EndTime "14:08:01 PDT"]
[Termination "ahmedkandiliii won by resignation"]

1. c4 {[%clk 0:02:58.5]} 1... e5 {[%clk 0:02:59.1]} 2. Nc3 {[%clk 0:02:55.4]}
2... Nf6 {[%clk 0:02:59.2]} 3. g3 {[%clk 0:02:55.3]} 3... Nc6 {[%clk 0:02:59.4]}
4. Bg2 {[%clk 0:02:55.9]} 4... Bc5 {[%clk 0:02:59.8]} 5. e3 {[%clk 0:02:55]}
5... d5 {[%clk 0:02:59.9]} 6. Nge2 {[%clk 0:02:55.6]} 6... dxc4 {[%clk
0:02:50.2]} 7. Qa4 {[%clk 0:02:53.7]} 7... O-O {[%clk 0:02:37.8]} 8. Bxc6 {[%clk
0:02:47.8]} 8... bxc6 {[%clk 0:02:37.4]} 9. Qxc6 {[%clk 0:02:48.7]} 9... Qd6
{[%clk 0:02:16.8]} 10. Qxa8 {[%clk 0:02:44]} 10... c6 {[%clk 0:02:16.8]} 11. Nb5
{[%clk 0:01:52.3]} 11... cxb5 {[%clk 0:02:09.9]} 12. Qg2 {[%clk 0:01:50.4]}
12... Qd3 {[%clk 0:01:59.1]} 13. f4 {[%clk 0:01:46.7]} 13... Ne4 {[%clk
0:01:36.3]} 14. fxe5 {[%clk 0:01:37.6]} 14... Bb7 {[%clk 0:01:22.4]} 15. O-O
{[%clk 0:01:37]} 15... Nxd2 {[%clk 0:01:11.3]} 16. Qxb7 {[%clk 0:01:33.4]} 16...
Bxe3+ {[%clk 0:00:57]} 17. Kh1 {[%clk 0:01:31.9]} 17... Nxf1 {[%clk 0:00:56.7]}
18. Bxe3 {[%clk 0:01:27.7]} 18... Qxe2 {[%clk 0:00:56.5]} 19. Bg1 {[%clk
0:01:21.2]} 19... Re8 {[%clk 0:00:48]} 20. Qg2 {[%clk 0:01:20.1]} 20... Qxg2+
{[%clk 0:00:45.1]} 21. Kxg2 {[%clk 0:01:21]} 21... Nd2 {[%clk 0:00:45.4]} 22.
Rd1 {[%clk 0:01:19.4]} 22... Ne4 {[%clk 0:00:44]} 23. Bxa7 {[%clk 0:01:02.3]}
23... c3 {[%clk 0:00:37.4]} 24. bxc3 {[%clk 0:00:59.8]} 24... Nxc3 {[%clk
0:00:38.3]} 25. Rd2 {[%clk 0:00:55.6]} 25... h5 {[%clk 0:00:36]} 26. Bd4 {[%clk
0:00:54.4]} 26... b4 {[%clk 0:00:32.6]} 27. Kf3 {[%clk 0:00:44.3]} 27... Ra8
{[%clk 0:00:29.8]} 28. Bxc3 {[%clk 0:00:41]} 28... bxc3 {[%clk 0:00:30.7]} 29.
Rc2 {[%clk 0:00:41.6]} 29... g5 {[%clk 0:00:21.3]} 30. Ke4 {[%clk 0:00:40.6]}
30... Kg7 {[%clk 0:00:20.5]} 31. Kf5 {[%clk 0:00:40.6]} 31... Ra5 {[%clk
0:00:18]} 32. Rxc3 {[%clk 0:00:34.5]} 32... Rxa2 {[%clk 0:00:17.9]} 33. h3
{[%clk 0:00:28.2]} 33... h4 {[%clk 0:00:15.8]} 34. Kxg5 {[%clk 0:00:25.9]} 34...
hxg3 {[%clk 0:00:15.5]} 35. Rxg3 {[%clk 0:00:26.8]} 35... Rf2 {[%clk 0:00:15.6]}
36. Kg4 {[%clk 0:00:19.2]} 36... Kg6 {[%clk 0:00:15.8]} 37. Rc3 {[%clk
0:00:15.3]} 37... Re2 {[%clk 0:00:15.3]} 38. Rc6+ {[%clk 0:00:15.2]} 38... Kg7
{[%clk 0:00:15.7]} 39. Rc5 {[%clk 0:00:11.5]} 39... Rh2 {[%clk 0:00:16.6]} 40.
h4 {[%clk 0:00:10]} 40... Rg2+ {[%clk 0:00:16.2]} 41. Kf5 {[%clk 0:00:06.6]}
41... Rf2+ {[%clk 0:00:15.8]} 42. Kg5 {[%clk 0:00:06.8]} 42... Rg2+ {[%clk
0:00:15.7]} 43. Kh5 {[%clk 0:00:07.3]} 43... Rg1 {[%clk 0:00:15.2]} 44. Rc7
{[%clk 0:00:07.4]} 44... Re1 {[%clk 0:00:14.6]} 45. Rc5 {[%clk 0:00:06.1]} 45...
Rg1 {[%clk 0:00:14.7]} 46. Ra5 {[%clk 0:00:06]} 46... Rg2 {[%clk 0:00:14.6]} 47.
Ra4 {[%clk 0:00:06.4]} 47... Rg1 {[%clk 0:00:14.7]} 48. Rg4+ {[%clk 0:00:06.3]}
48... Rxg4 {[%clk 0:00:14.9]} 49. Kxg4 {[%clk 0:00:07.2]} 49... Kg6 {[%clk
0:00:15.6]} 50. h5+ {[%clk 0:00:06.6]} 50... Kh6 {[%clk 0:00:15.6]} 51. Kh4
{[%clk 0:00:07.2]} 51... Kg7 {[%clk 0:00:15.8]} 52. Kg5 {[%clk 0:00:07.5]} 52...
Kh7 {[%clk 0:00:15.9]} 53. Kf6 {[%clk 0:00:07.8]} 1-0

[Event "Late-Titled-Tuesday-Blitz-May-07-2024"]
[Site "Chess.com"]
[Date "2024.05.07"]
[Round "1"]
[White "MusicCityMaster"]
[Black "zimmm36"]
[Result "0-1"]
[WhiteElo "2441"]
[BlackElo "2763"]
[TimeControl "180+1"]
[EndTime "14:08:03 PDT"]
[Termination "zimmm36 won by resignation"]

1. d4 {[%clk 0:02:59.2]} 1... Nf6 {[%clk 0:02:56.7]} 2. c4 {[%clk 0:02:58.5]}
2... g6 {[%clk 0:02:57.6]} 3. Nc3 {[%clk 0:02:58.2]} 3... Bg7 {[%clk 0:02:58.5]}
4. e4 {[%clk 0:02:57.6]} 4... d6 {[%clk 0:02:59.4]} 5. Nf3 {[%clk 0:02:57.1]}
5... O-O {[%clk 0:02:56]} 6. Be2 {[%clk 0:02:57.4]} 6... e5 {[%clk 0:02:56.4]}
7. O-O {[%clk 0:02:58]} 7... Nc6 {[%clk 0:02:56.9]} 8. d5 {[%clk 0:02:58.6]}
8... Ne7 {[%clk 0:02:57.6]} 9. b4 {[%clk 0:02:59.1]} 9... h6 {[%clk 0:02:57.3]}
10. a4 {[%clk 0:02:50.2]} 10... Kh7 {[%clk 0:02:57.2]} 11. a5 {[%clk 0:02:49.9]}
11... c6 {[%clk 0:02:57.6]} 12. Ba3 {[%clk 0:02:46.1]} 12... a6 {[%clk
0:02:49.6]} 13. Rc1 {[%clk 0:02:43.2]} 13... Bd7 {[%clk 0:02:42.6]} 14. Na4
{[%clk 0:02:37.6]} 14... cxd5 {[%clk 0:02:39.1]} 15. Nb6 {[%clk 0:02:34.9]}
15... dxe4 {[%clk 0:02:37.4]} 16. Nd2 {[%clk 0:02:26.3]} 16... Rb8 {[%clk
0:02:32.9]} 17. b5 {[%clk 0:02:21.4]} 17... axb5 {[%clk 0:02:29]} 18. Bxd6
{[%clk 0:02:20.7]} 18... bxc4 {[%clk 0:02:24.4]} 19. Ndxc4 {[%clk 0:02:13.8]}
19... Bc6 {[%clk 0:02:21]} 20. Nxe5 {[%clk 0:01:58.1]} 20... Be8 {[%clk
0:01:32.5]} 21. Bxb8 {[%clk 0:01:51.7]} 21... Qxb8 {[%clk 0:01:33.4]} 22. Ned7
{[%clk 0:01:26.9]} 22... Nxd7 {[%clk 0:01:33.3]} 23. Nxd7 {[%clk 0:01:27.8]}
23... Bxd7 {[%clk 0:01:34]} 24. Qxd7 {[%clk 0:01:27.7]} 24... Nf5 {[%clk
0:01:34.7]} 25. Rb1 {[%clk 0:01:18]} 25... Be5 {[%clk 0:01:32.8]} 26. g3 {[%clk
0:00:59.2]} 26... Qa7 {[%clk 0:01:19.1]} 27. a6 {[%clk 0:00:53]} 27... e3 {[%clk
0:01:05.1]} 28. f4 {[%clk 0:00:44.4]} 28... Nd4 {[%clk 0:01:00.3]} 29. Rfe1
{[%clk 0:00:33.7]} 29... Nxe2+ {[%clk 0:00:57]} 30. Rxe2 {[%clk 0:00:33.9]}
30... Qxa6 {[%clk 0:00:57.8]} 31. Qb5 {[%clk 0:00:26.5]} 31... Qxb5 {[%clk
0:00:51]} 32. Rxb5 {[%clk 0:00:27.4]} 32... Bd4 {[%clk 0:00:51.6]} 33. Rxb7
{[%clk 0:00:27.7]} 33... h5 {[%clk 0:00:50.7]} 34. Kg2 {[%clk 0:00:28]} 34...
Kg7 {[%clk 0:00:49.6]} 35. Kf3 {[%clk 0:00:28.9]} 35... Rd8 {[%clk 0:00:48.8]}
36. Rc2 {[%clk 0:00:24.3]} 36... Kg8 {[%clk 0:00:33.9]} 37. Rcc7 {[%clk
0:00:23.4]} 37... Re8 {[%clk 0:00:34.3]} 38. Ke2 {[%clk 0:00:21.3]} 38... Rf8
{[%clk 0:00:24.1]} 39. Kd3 {[%clk 0:00:20.4]} 39... Re8 {[%clk 0:00:20.5]} 40.
Kxd4 {[%clk 0:00:18]} 40... e2 {[%clk 0:00:20.3]} 41. Re7 {[%clk 0:00:16.7]}
41... e1=Q {[%clk 0:00:20.5]} 42. Rxe1 {[%clk 0:00:16]} 42... Rxe1 {[%clk
0:00:20.7]} 43. Rb2 {[%clk 0:00:16.5]} 43... Kg7 {[%clk 0:00:20.4]} 44. Kd3
{[%clk 0:00:15.4]} 44... Kf6 {[%clk 0:00:20.5]} 45. Re2 {[%clk 0:00:15.5]} 45...
Rd1+ {[%clk 0:00:20.9]} 46. Ke3 {[%clk 0:00:15.5]} 46... Kf5 {[%clk 0:00:21.4]}
47. Kf3 {[%clk 0:00:12.9]} 47... Rd3+ {[%clk 0:00:19.7]} 48. Kg2 {[%clk
0:00:13.3]} 48... f6 {[%clk 0:00:20.2]} 49. Rf2 {[%clk 0:00:12.9]} 49... Ra3
{[%clk 0:00:19.4]} 50. Re2 {[%clk 0:00:13.1]} 50... Ra4 {[%clk 0:00:18.8]} 51.
Rf2 {[%clk 0:00:13.3]} 51... Kg4 {[%clk 0:00:19.2]} 52. h3+ {[%clk 0:00:13.1]}
52... Kf5 {[%clk 0:00:19.7]} 53. Re2 {[%clk 0:00:13]} 53... h4 {[%clk
0:00:19.8]} 54. gxh4 {[%clk 0:00:12.2]} 54... Rxf4 {[%clk 0:00:19.2]} 55. Rf2
{[%clk 0:00:11.5]} 55... Rxf2+ {[%clk 0:00:18.6]} 56. Kxf2 {[%clk 0:00:12.1]}
56... Kf4 {[%clk 0:00:19.5]} 57. Kg2 {[%clk 0:00:12.2]} 57... Ke3 {[%clk
0:00:19.1]} 58. Kg3 {[%clk 0:00:12.1]} 58... f5 {[%clk 0:00:19.6]} 59. Kg2
{[%clk 0:00:10.5]} 59... f4 {[%clk 0:00:19.6]} 60. Kf1 {[%clk 0:00:09.4]} 60...
Kf3 {[%clk 0:00:20]} 61. Kg1 {[%clk 0:00:08.4]} 61... Kg3 {[%clk 0:00:20.2]} 62.
h5 {[%clk 0:00:08.7]} 62... gxh5 {[%clk 0:00:20.3]} 63. h4 {[%clk 0:00:08.5]}
63... Kxh4 {[%clk 0:00:20.5]} 64. Kf2 {[%clk 0:00:09.4]} 64... Kg4 {[%clk
0:00:21.4]} 65. Kg2 {[%clk 0:00:09.6]} 65... f3+ {[%clk 0:00:22.3]} 66. Kf2
{[%clk 0:00:09.9]} 66... Kf4 {[%clk 0:00:23.2]} 0-1

[Event "Late-Titled-Tuesday-Blitz-May-07-2024"]
[Site "Chess.com"]
[Date "2024.05.07"]
[Round "1"]
[White "ArmanGhevondyanchess"]
[Black "PhileKhoob"]
[Result "0-1"]
[WhiteElo "2620"]
[BlackElo "2317"]
[TimeControl "180+1"]
[EndTime "14:08:03 PDT"]
[Termination "PhileKhoob won by checkmate"]

1. Nf3 {[%clk 0:02:58.8]} 1... Nf6 {[%clk 0:02:59.8]} 2. d4 {[%clk 0:02:59.7]}
2... g6 {[%clk 0:02:59.8]} 3. g3 {[%clk 0:02:50.8]} 3... Bg7 {[%clk 0:02:59.5]}
4. Bg2 {[%clk 0:02:51.7]} 4... d5 {[%clk 0:02:59.4]} 5. O-O {[%clk 0:02:52.6]}
5... O-O {[%clk 0:02:59.2]} 6. b3 {[%clk 0:02:53.5]} 6... c5 {[%clk 0:02:58.9]}
7. Bb2 {[%clk 0:02:54.2]} 7... Ne4 {[%clk 0:02:57.4]} 8. Na3 {[%clk 0:02:53.1]}
8... Nc6 {[%clk 0:02:57.1]} 9. c4 {[%clk 0:02:44.3]} 9... dxc4 {[%clk
0:02:43.5]} 10. Nxc4 {[%clk 0:02:42.9]} 10... cxd4 {[%clk 0:02:35.8]} 11. Nxd4
{[%clk 0:02:41.6]} 11... Bxd4 {[%clk 0:02:33.2]} 12. Bxe4 {[%clk 0:02:39.6]}
12... Bxb2 {[%clk 0:02:31.5]} 13. Nxb2 {[%clk 0:02:40.5]} 13... Qc7 {[%clk
0:02:30.5]} 14. Rc1 {[%clk 0:02:30.6]} 14... Qe5 {[%clk 0:02:30.1]} 15. Bg2
{[%clk 0:02:27.4]} 15... Qxb2 {[%clk 0:02:29.9]} 16. Rc2 {[%clk 0:02:21.4]}
16... Qf6 {[%clk 0:02:26.5]} 17. e3 {[%clk 0:02:19]} 17... Bf5 {[%clk
0:02:23.2]} 18. Rc4 {[%clk 0:02:19.1]} 18... Rad8 {[%clk 0:02:20.2]} 19. Qc1
{[%clk 0:02:19.2]} 19... Bd3 {[%clk 0:02:18.5]} 20. Rf4 {[%clk 0:02:19.2]} 20...
Qe5 {[%clk 0:02:09.7]} 21. Re1 {[%clk 0:02:13.6]} 21... Rc8 {[%clk 0:01:51.1]}
22. Qa3 {[%clk 0:02:11.6]} 22... Rfe8 {[%clk 0:01:43.3]} 23. h4 {[%clk
0:01:48.9]} 23... h5 {[%clk 0:01:28.2]} 24. b4 {[%clk 0:01:48.3]} 24... Bf5
{[%clk 0:01:21.3]} 25. Qb3 {[%clk 0:01:37.5]} 25... Be6 {[%clk 0:01:20.6]} 26.
Qb1 {[%clk 0:01:36.9]} 26... Bf5 {[%clk 0:01:03.9]} 27. Qb3 {[%clk 0:01:33.2]}
27... a6 {[%clk 0:01:04.3]} 28. a4 {[%clk 0:01:30.2]} 28... b5 {[%clk
0:01:00.5]} 29. axb5 {[%clk 0:01:28.3]} 29... axb5 {[%clk 0:01:01.4]} 30. Bd5
{[%clk 0:01:28.1]} 30... e6 {[%clk 0:00:59.2]} 31. Bg2 {[%clk 0:01:27.6]} 31...
Ne7 {[%clk 0:00:58.2]} 32. e4 {[%clk 0:01:26.3]} 32... Nd5 {[%clk 0:00:37]} 33.
Rxf5 {[%clk 0:01:04]} 33... exf5 {[%clk 0:00:36.1]} 34. Kh2 {[%clk 0:00:59.7]}
34... Nb6 {[%clk 0:00:29.1]} 35. Qd3 {[%clk 0:00:56.1]} 35... Nc4 {[%clk
0:00:25.6]} 36. Re2 {[%clk 0:00:53.4]} 36... f4 {[%clk 0:00:25.6]} 37. Qf3
{[%clk 0:00:51.3]} 37... fxg3+ {[%clk 0:00:25.3]} 38. fxg3 {[%clk 0:00:52.2]}
38... Rcd8 {[%clk 0:00:24.7]} 39. Rf2 {[%clk 0:00:52.7]} 39... Re7 {[%clk
0:00:24]} 40. Re2 {[%clk 0:00:51]} 40... Ra8 {[%clk 0:00:23.1]} 41. Qf2 {[%clk
0:00:48.3]} 41... Ra3 {[%clk 0:00:22.4]} 42. Rc2 {[%clk 0:00:47.6]} 42... Kg7
{[%clk 0:00:19.5]} 43. Ra2 {[%clk 0:00:46.1]} 43... Rxa2 {[%clk 0:00:18.9]} 44.
Qxa2 {[%clk 0:00:47]} 44... Rd7 {[%clk 0:00:19.7]} 45. Qf2 {[%clk 0:00:44]}
45... Rd2 {[%clk 0:00:19.7]} 46. Qf3 {[%clk 0:00:44.6]} 46... Nd6 {[%clk
0:00:11.2]} 47. Kh3 {[%clk 0:00:43]} 47... Rd4 {[%clk 0:00:09.1]} 48. Qe3 {[%clk
0:00:37.1]} 48... Nxe4 {[%clk 0:00:09.3]} 49. Kh2 {[%clk 0:00:36.2]} 49... Qxg3+
{[%clk 0:00:09.4]} 50. Qxg3 {[%clk 0:00:36.4]} 50... Nxg3 {[%clk 0:00:10.3]} 51.
Kxg3 {[%clk 0:00:37.3]} 51... Rxb4 {[%clk 0:00:11.2]} 52. Bd5 {[%clk 0:00:37.6]}
52... Kf6 {[%clk 0:00:11.4]} 53. Ba2 {[%clk 0:00:34.8]} 53... Ke5 {[%clk
0:00:12.3]} 54. Bxf7 {[%clk 0:00:35]} 54... Rg4+ {[%clk 0:00:12.6]} 55. Kh3
{[%clk 0:00:35.5]} 55... b4 {[%clk 0:00:13.5]} 56. Bb3 {[%clk 0:00:34.2]} 56...
Rf4 {[%clk 0:00:13.4]} 57. Bc2 {[%clk 0:00:32]} 57... Rf3+ {[%clk 0:00:12.9]}
58. Kg2 {[%clk 0:00:32.3]} 58... Rc3 {[%clk 0:00:13.4]} 59. Bxg6 {[%clk
0:00:32.4]} 59... b3 {[%clk 0:00:14.3]} 60. Bxh5 {[%clk 0:00:32.3]} 60... b2
{[%clk 0:00:15.2]} 61. Bg6 {[%clk 0:00:33]} 61... Rc1 {[%clk 0:00:14.3]} 62. Kg3
{[%clk 0:00:33.4]} 62... b1=Q {[%clk 0:00:12.9]} 63. Bxb1 {[%clk 0:00:34]} 63...
Rxb1 {[%clk 0:00:13.5]} 64. Kg4 {[%clk 0:00:34.9]} 64... Kf6 {[%clk 0:00:13.3]}
65. Kh5 {[%clk 0:00:35.8]} 65... Rh1 {[%clk 0:00:13.7]} 66. Kh6 {[%clk
0:00:36.7]} 66... Rxh4# {[%clk 0:00:13.9]} 0-1